Cogmind - Beta 15 @@@ ROGUE MODE // 2025.07.20 @ 22:14:21 Player: Cracklepappy Result: Self-destructed Performance ------------- Evolutions (3) 1500 Regions Visited (10) 2000 Robots Destroyed (238) 1190 Value Destroyed (9559) 9559 Prototype IDs (45) 900 Alien Tech Used (0) 0 Bonus (3259) 3259 TOTAL SCORE: 18408 Bonus ------- High Alert Combat Kills 2265 Follower Combat Kills 330 Entered Garrisons 400 Aligned with FarCom 300 Friendly Fire -36 Cogmind --------- Core Integrity 562/700 Matter 163/300 Energy 279/290 System Corruption 9% Temperature Cool (58) Movement Core (1050) Ox20 Location -7/Garrison Parts ------- > --- POWER (1) -------- Reinforced Deuterium Engine > --- PROPULSION (2) --- (None) > --- UTILITY (4) ------ High-capacity Storage Unit Advanced Targeting Computer Improved Target Analyzer > --- WEAPON (6) ------- Enhanced Autogun Flak Gun > --- INVENTORY (20) --- Cold Fusion Reactor Armored Wheel Cryofiber Web Improved Cooling System Improved Coolant Injector Huge Storage Unit High-capacity Matter Pod (200) High-capacity Matter Pod (117) Improved Salvage Targeting Computer Improved Salvage Targeting Computer Experimental Core Analyzer Powered Armor Authchip [Propulsion] Authchip [Weapon] Advanced Component Analysis Suite Improved System Guard Heavy Plasma Cannon Spear Peak State ------------ > --- POWER ------------ Reinforced Deuterium Engine > --- PROPULSION ------- Armored Wheel Armored Wheel > --- UTILITY ---------- Improved Cooling System High-capacity Storage Unit Advanced Targeting Computer Improved Target Analyzer > --- WEAPON ----------- Tesla Rifle Enhanced Autogun Enhanced Autogun Enhanced Autogun Gauss Rifle Heavy Machine Gun > --- INVENTORY -------- Cold Fusion Reactor Armored Wheel Armored Wheel Cryofiber Web Improved Cooling System Improved Coolant Injector Huge Storage Unit High-capacity Matter Pod High-capacity Matter Pod Improved Salvage Targeting Computer Improved Salvage Targeting Computer Experimental Core Analyzer Powered Armor Authchip [Propulsion] Authchip [Weapon] Advanced Component Analysis Suite Improved System Guard Heavy Plasma Cannon Autogun Spear [Rating: 56] Favorites ----------- Power Heavy Ion Engine Engine Heavy Ion Engine Power Core Light Nuclear Core Propulsion Armored Wheel Wheel Armored Wheel Utility High-capacity Storage Unit Device Improved Cooling System Storage High-capacity Storage Unit Processor Improved Targeting Computer Hackware Makeshift Hacking Suite Protection Powered Armor Weapon Shotgun Energy Gun EM Pulse Gun Energy Cannon Advanced Beam Cannon Ballistic Gun Shotgun Ballistic Cannon Light Cannon Launcher Missile Launcher Slashing Weapon Ripper Piercing Weapon Spear Special Melee Weapon Datajack Build | -11 -10 -10 -9 -9 -9 -8 -8 -8 -7 -7 ------- Run | Yrd Mat Min Mat Min Exi Min Mat Gar Fac Gar Slots Evolved 6 | . . . 2 . . . 2 . 2 . Power . | . . . . . . . . . . . Propulsion . | . . . . . . . . . . . Utility 2 | . . . . . . . 1 . 1 . Weapon 4 | . . . 2 . . . 1 . 1 . Parts Attached 125 | 8 13 5 14 4 13 1 31 21 4 11 Power 13 | 1 2 1 3 . 2 . 2 2 . . Engine 12 | 1 1 1 3 . 2 . 2 2 . . Core 1 | . 1 . . . . . . . . . Reactor . | . . . . . . . . . . . Propulsion 13 | 2 3 1 . . 1 . . 5 . 1 Treads . | . . . . . . . . . . . Leg . | . . . . . . . . . . . Wheel 13 | 2 3 1 . . 1 . . 5 . 1 Hover . | . . . . . . . . . . . Flight . | . . . . . . . . . . . Utility 29 | 2 3 1 3 1 . . 11 4 1 3 Device 9 | 1 . . . . . . 4 2 . 2 Storage 8 | 1 2 . 2 1 . . . 2 . . Processor 3 | . . . 1 . . . 1 . . 1 Hackware 3 | . . . . . . . 3 . . . Protection 6 | . 1 1 . . . . 3 . 1 . Artifact . | . . . . . . . . . . . Weapon 70 | 3 5 2 8 3 10 1 18 10 3 7 Energy Gun 5 | 2 . . . . . . 1 . . 2 Energy Cannon 3 | . . . 1 . 1 . . 1 . . Ballistic Gun 46 | 1 2 2 4 2 4 1 13 9 3 5 Ballistic Cannon 10 | . 2 . 3 1 2 . 2 . . . Launcher 3 | . 1 . . . 1 . 1 . . . Special Weapon . | . . . . . . . . . . . Impact Weapon . | . . . . . . . . . . . Slashing Weapon 1 | . . . . . 1 . . . . . Piercing Weapon 1 | . . . . . . . 1 . . . Special Melee Weapon 1 | . . . . . 1 . . . . . Unidentified Prototypes 4 | . . . 2 . . . 2 . . . Parts Lost 21 | . 2 1 . . 5 . 3 . . 10 Power 1 | . . . . . . . 1 . . . Propulsion 3 | . 1 . . . . . . . . 2 Utility 3 | . . 1 . . . . 1 . . 1 Weapon 14 | . 1 . . . 5 . 1 . . 7 Highest Loss Streak 9 | . 2 1 . . 5 . 1 . . 9 To Critical Strikes 4 | . . . . . 4 . . . . . Average Backups 18 | 4 14 15 18 22 19 20 19 20 18 19 Power 1 | . 1 . . 1 1 1 1 1 1 1 Propulsion 1 | 1 2 1 1 1 1 1 . 1 2 1 Utility 8 | . 1 2 5 6 5 10 12 12 11 12 Weapon 8 | 1 9 10 9 12 11 7 5 5 4 3 Tool/Special . | . . . . . . . . . . . Unused Backups 61 | 2 11 . 8 2 13 . 11 1 . 13 Power 8 | 1 . . 1 . 4 . 1 . . 1 Propulsion 6 | 1 3 . . . . . . 1 . 1 Utility 35 | . 4 . 5 . 8 . 7 . . 11 Weapon 12 | . 4 . 2 2 1 . 3 . . . Tool/Special . | . . . . . . . . . . . Average Slot Usage (%) 96 | . 99 99 99 100 79 100 99 100 99 99 Engine 10 | . 12 14 11 11 11 11 8 9 7 7 Wheel 20 | . 27 28 21 22 21 22 18 18 15 14 Device 2 | . 6 . . . . . 1 6 7 10 Storage 10 | . 14 14 11 11 11 11 9 9 7 7 Processor 8 | . . . 10 11 11 11 9 9 7 10 Protection 2 | . 7 13 . . . . 5 2 7 . Energy Cannon 2 | . . . 4 11 1 . . 2 1 . Ballistic Gun 25 | . 13 28 11 28 8 22 39 40 43 42 Ballistic Cannon 8 | . 9 . 27 4 4 21 5 . . . Slashing Weapon 1 | . . . . . 7 . . . . . Peak Build Rating 56 | 7 13 13 23 24 32 25 38 43 52 56 Average Rating 27 | 5 11 12 18 23 20 24 34 38 50 50 On Entrance 23 | . 7 13 13 23 24 25 25 37 43 51 Naked Turns . | . . . . . . . . . . . Heaviest Build 102 | 15 34 34 61 102 102 63 78 82 87 87 Greatest Support 24 | 20 24 24 24 24 24 24 24 24 24 24 Greatest Overweight (x) 4 | . 1 1 2 4 4 2 3 3 3 3 Average Overweight (x) 2 | . . 1 1 2 2 2 2 2 3 3 Largest Inventory Capacity 25 | 8 15 15 20 25 25 20 20 20 20 20 Average Capacity 19 | 6 14 15 18 22 21 20 20 20 20 20 Most Carried 25 | 8 15 15 20 25 25 20 20 20 19 20 Average Carried 18 | 4 14 14 18 22 19 19 19 19 18 19 Final Capacity 25 | 8 15 15 20 25 20 20 20 20 20 20 Final Carried 25 | 8 15 15 20 25 20 20 20 20 19 18 Class Distribution -------------------- 53% | Gunner 26% | Mutant 11% | Scavenger-Executioner 8% | Scavenger-Gunner Dominant Class ---------------- Mutant | -10/Materials Mutant | -10/Mines Gunner | -9/Materials Gunner | -9/Mines Mutant | -9/Exiles Gunner | -8/Mines Gunner | -8/Materials Scavenger-Gunner | -8/Garrison Scavenger-Executioner | -7/Factory Scavenger-Executioner | -7/Garrison Resources | -11 -10 -10 -9 -9 -9 -8 -8 -8 -7 -7 ----------- Run | Yrd Mat Min Mat Min Exi Min Mat Gar Fac Gar Matter Collected 11381 | 335 557 181 1733 126 1363 426 2470 2012 . 2178 Remotely . | . . . . . . . . . . . Salvage Created 9698 | 244 612 249 1512 109 542 310 2104 2148 . 1868 Parts 534 | 22 34 26 97 4 47 19 110 96 . 79 Haulers Intercepted 13 | . 2 . 6 . . . 5 . . . Recyclers Shooed 3 | . 1 . . . . . 2 . . . Parts Field Recycled . | . . . . . . . . . . . Retrieved Matter . | . . . . . . . . . . . Parts Self-Destructed . | . . . . . . . . . . . Prevented . | . . . . . . . . . . . Kills | -11 -10 -10 -9 -9 -9 -8 -8 -8 -7 -7 ------- Run | Yrd Mat Min Mat Min Exi Min Mat Gar Fac Gar Combat Hostiles Destroyed 181 | . 13 10 34 2 5 12 35 34 . 36 Guns 129 | . 13 10 3 . 1 4 28 34 . 36 Cannons 49 | . . . 31 2 1 8 7 . . . AOE 3 | . . . . . 3 . . . . . Classes Destroyed 20 | 3 4 1 4 1 3 . 1 3 . . Worker 7 | 2 . . . . . . 5 . . . Builder 2 | . . . 1 . . . 1 . . . Tunneler 9 | 6 . . 1 . . 2 . . . . Hauler 13 | . 2 . 6 . . . 5 . . . Recycler 8 | 1 1 . 2 1 . . 3 . . . Operator 1 | . . . 1 . . . . . . . Turret 1 | . . . . . 1 . . . . . Watcher 10 | . 1 . 5 . . . 3 . . 1 Swarmer 39 | . 6 6 7 1 . 4 4 4 . 7 Grunt 85 | . 7 2 15 . . 6 20 14 . 21 Brawler 4 | . . . 1 . . . 1 2 . . Duelist 5 | . . . 1 . . 2 . 1 . 1 Protector 1 | . . . . . . . . 1 . . Sentry 29 | . . 2 10 . . . 6 6 . 5 Demolisher 2 | . . . . 1 . . . 1 . . Hunter 6 | . . . . . . . 4 . . 2 Programmer 3 | . . . . . . . . 3 . . Behemoth 2 | . . . . . . . . 2 . . Zionite 8 | . . . . . 8 . . . . . Assembled 4 | . . . . . 4 . . . . . Best Kill Streak 13 | 3 4 3 5 1 8 4 6 6 . 13 Combat Bots Only 13 | . 3 3 5 1 4 4 6 6 . 13 Max Kills in Single Turn 3 | 1 1 2 1 1 3 2 2 2 . 2 Gunslinging 1 | . . 1 . . . . 1 1 . 1 Exploded 3 | . . . . . 3 . . . . . Melee . | . . . . . . . . . . . Uniques/NPCs Destroyed 4 | . . . . . 4 . . . . . 8R-AWN (-9/Exiles) EX-BIN (-9/Exiles) EX-HEX (-9/Exiles) EX-DEC (-9/Exiles) Combat | -11 -10 -10 -9 -9 -9 -8 -8 -8 -7 -7 -------- Run | Yrd Mat Min Mat Min Exi Min Mat Gar Fac Gar Hostile Shots Fired 636 | . 45 28 65 2 58 41 97 108 . 192 Missed 173 | . 17 5 16 1 6 8 27 36 . 57 Hits 463 | . 28 23 49 1 52 33 70 72 . 135 Melee 1 | . . . . . 1 . . . . . Projectile 462 | . 28 23 49 1 51 33 70 72 . 135 AOE 2 | . . . . . . . . 2 . . Critical Strikes 42 | . 2 2 1 . 28 2 1 2 . 4 Part Disruptions 2 | . . . . . . . 1 . . 1 Damage Taken 6756 | . 309 289 593 9 893 418 1112 1311 . 1822 Core 751 | . 45 23 65 9 112 21 106 232 . 138 Absorbed by Shields 38 | . . . . . . . . 38 . . Regen/Repaired (Parts) 287 | . . . 119 . . . 168 . . . Core Remaining (%) 64 | 100 . 72 . . . 48 . 38 . . Volleys Fired 535 | 65 33 17 80 8 62 25 91 83 2 69 Largest 6 | 1 2 2 4 4 4 4 5 5 6 6 Hottest 196 | 20 80 46 158 147 120 122 143 196 155 159 Shots Fired 1929 | 65 66 34 311 33 128 97 440 368 12 375 Gun 1476 | 65 66 34 33 18 79 40 393 361 12 375 Cannon 449 | . . . 278 15 45 57 47 7 . . Launcher 4 | . . . . . 4 . . . . . Special . | . . . . . . . . . . . Kinetic 1828 | 65 38 34 294 24 88 97 440 361 12 375 Thermal 69 | . . . 17 9 36 . . 7 . . Explosive 4 | . . . . . 4 . . . . . Electromagnetic 28 | . 28 . . . . . . . . . Robot Hit Streak 26 | 9 5 6 15 5 25 26 13 13 3 13 Robot Miss Streak 9 | 3 6 3 4 4 4 9 7 4 2 6 Penetration Max 1 | . . . . . . . . 1 . 1 Secondary Targets 24 | . . 1 . . . . 2 8 . 13 Max Gunslinging Chain 2 | . . 1 . . . . 1 2 . 2 Shots Hit Robots 1127 | 43 40 26 140 17 103 46 242 250 3 217 Core Hits 476 | 17 27 15 60 5 35 24 108 88 1 96 Critical Kills 4 | . . . . . . . 2 1 . 1 Critical Parts Destroyed 10 | . . . . . . . 2 1 . 7 Critical Strikes 32 | . . . 6 . 5 2 4 5 . 10 Destroy 19 | . . . . . 5 . 4 2 . 8 Blast 8 | . . . 6 . . 2 . . . . Impale 5 | . . . . . . . . 3 . 2 Melee Attacks 112 | . . . . . 15 . . 55 . 42 Impact . | . . . . . . . . . . . Slashing 11 | . . . . . 11 . . . . . Piercing 97 | . . . . . . . . 55 . 42 Sneak Attacks 4 | . . . . . 4 . . . . . Combat Hostiles . | . . . . . . . . . . . Follow-up Attacks . | . . . . . . . . . . . Damage Inflicted 21989 | 355 573 387 2553 292 3271 1017 3865 5246 77 4353 Guns 13819 | 355 573 387 108 109 860 274 3236 3998 77 3842 Cannons 5489 | . . . 2445 183 1408 743 629 81 . . Explosions 260 | . . . . . 260 . . . . . Melee 2421 | . . . . . 743 . . 1167 . 511 Ramming . | . . . . . . . . . . . Kinetic 17424 | 355 325 387 2384 189 985 1017 3865 3998 77 3842 Thermal 1636 | . . . 169 103 1283 . . 81 . . Explosive 260 | . . . . . 260 . . . . . Electromagnetic 248 | . 248 . . . . . . . . . Impact . | . . . . . . . . . . . Slashing 743 | . . . . . 743 . . . . . Piercing 1678 | . . . . . . . . 1167 . 511 Highest Corruption 9 | . . . 3 3 3 3 . 1 2 9 Average Corruption 2 | . . . 2 3 3 3 . 1 2 2 Corruption Purged . | . . . . . . . . . . . Corruption Blocked . | . . . . . . . . . . . Effects 149 | . . . 24 25 44 14 . 6 . 36 Message Errors 41 | . . . 8 5 12 6 . . . 10 Matter Fused 34 | . . . 6 4 13 2 . 1 . 8 Heat Flow Errors 16 | . . . . 7 3 2 . 1 . 3 Energy Discharges 17 | . . . 4 3 5 1 . . . 4 Parts Fused 2 | . . . 1 . . . . . . 1 Data Loss (minor) 23 | . . . 2 1 10 2 . 2 . 6 Data Loss (major) 5 | . . . 1 1 1 . . 1 . 1 Misfires 7 | . . . 1 2 . 1 . 1 . 2 Alerts 2 | . . . . 1 . . . . . 1 Weapon Failures 2 | . . . 1 1 . . . . . . Overload Shots . | . . . . . . . . . . . Overflow Damage 330 | . . . 20 1 135 9 . 165 . . Projectiles 95 | . . . 20 1 52 9 . 13 . . Explosions 51 | . . . . . 51 . . . . . Melee 184 | . . . . . 32 . . 152 . . Knockbacks 48 | . . . 21 3 3 10 11 . . . Impact . | . . . . . . . . . . . Kinetic 47 | . . . 20 3 3 10 11 . . . Secondary 1 | . . . 1 . . . . . . . Self-Inflicted Damage . | . . . . . . . . . . . Shots . | . . . . . . . . . . . Rammed . | . . . . . . . . . . . Targets Rammed . | . . . . . . . . . . . Kicked . | . . . . . . . . . . . Crushed . | . . . . . . . . . . . Highest Temperature 384 | . 189 22 324 235 348 384 305 365 62 199 Average Temperature 88 | . 52 11 87 84 133 103 76 94 36 43 Received Heat Transfer 1798 | . 129 129 207 . . 216 360 415 . 342 Effects 5 | . . . . . 1 1 1 2 . . Energy Bleed 2 | . . . . . 1 . 1 . . . Matter Decay 2 | . . . . . . 1 . 1 . . Short Circuit 1 | . . . . . . . . 1 . . Siege Activations . | . . . . . . . . . . . Martial Activations . | . . . . . . . . . . . Shielding Activations . | . . . . . . . . . . . Robots Disrupted . | . . . . . . . . . . . Combat Hostiles . | . . . . . . . . . . . Robots Corrupted . | . . . . . . . . . . . Combat Hostiles . | . . . . . . . . . . . Parts Fried . | . . . . . . . . . . . Impact Corruptions . | . . . . . . . . . . . Robots Melted . | . . . . . . . . . . . Combat Hostiles . | . . . . . . . . . . . Parts Melted 11 | . . . . . 10 . . 1 . . Heat Transferred 3461 | . . . 296 185 2880 . . 100 . . Parts Sabotaged . | . . . . . . . . . . . Parts Stolen . | . . . . . . . . . . . Parts Stripped . | . . . . . . . . . . . Power Chain Reactions . | . . . . . . . . . . . Alert | -11 -10 -10 -9 -9 -9 -8 -8 -8 -7 -7 ------- Run | Yrd Mat Min Mat Min Exi Min Mat Gar Fac Gar Maximum Alert Level 5 | . . . 2 . . . 2 5 3 5 Low Security (%) 50 | 100 100 100 24 100 . 100 69 . . . Level 1 15 | . . . 61 . . . 22 4 . . Level 2 5 | . . . 13 . . . 7 11 . . Level 3 7 | . . . . . . . . 21 100 27 Level 4 5 | . . . . . . . . 20 . 14 Level 5 14 | . . . . . . . . 41 . 58 High Security . | . . . . . . . . . . . Max Security . | . . . . . . . . . . . Peak Influence 2287 | 15 143 70 493 191 . 171 544 2030 1065 2287 Initial 1065 | . 6 5 17 191 . . . 349 1065 720 Average 516 | 2 42 17 270 31 . 70 135 1296 1046 1595 Influence Increases 6819 | 45 386 230 1238 45 . 356 1137 1801 4 1577 Destroy 0b10 Robot/C 3740 | . 260 200 680 40 . 240 720 840 . 760 Destroy 0b10 Robot/NC 290 | 45 20 . 80 5 . 10 85 30 . 15 Destroy Leader 614 | . 66 30 232 . . 30 196 30 . 30 Allied During Kill 171 | . . . . . . . 7 110 . 54 Successful Hack 168 | . 25 . 48 . . 14 47 . 4 30 Select Force Hacks 90 | . . . 60 . . . 30 . . . Disable Machine 180 | . 15 . 60 . . 45 15 30 . 15 Anti-Garrison Action 1050 | . . . . . . . . 600 . 450 Destroy Structure 276 | . . . 33 . . 2 7 131 . 103 Lose Combat Pursuer 240 | . . . 45 . . 15 30 30 . 120 Influence Decreases 4622 | 35 381 199 793 536 . 356 599 309 1005 409 Entered New Map 1806 | . 4 10 29 300 . . . 189 965 309 Time Decay 2356 | 35 357 179 604 236 . 356 549 . 40 . Lost Part 160 | . 20 10 . . . . 30 . . 100 Lost Ally 150 | . . . 10 . . . 20 120 . . Purge Threat 150 | . . . 150 . . . . . . . Squads Dispatched 20 | . 2 . 7 . . . 10 . 1 . Investigation 10 | . 1 . 3 . . . 6 . . . Extermination . | . . . . . . . . . . . Reinforcement 6 | . 1 . 4 . . . . . 1 . Assault 1 | . . . . . . . 1 . . . Garrison 3 | . . . . . . . 3 . . . Intercept . | . . . . . . . . . . . Searches Triggered . | . . . . . . . . . . . Construction Impeded . | . . . . . . . . . . . Haulers Reinforced . | . . . . . . . . . . . Active Scanning Responses . | . . . . . . . . . . . Cargo Convoy Interrupts . | . . . . . . . . . . . Stealth | -11 -10 -10 -9 -9 -9 -8 -8 -8 -7 -7 --------- Run | Yrd Mat Min Mat Min Exi Min Mat Gar Fac Gar Distress Signals 6 | . . . 5 . . . 1 . . . Communications Jammed . | . . . . . . . . . . . Distress Signals . | . . . . . . . . . . . Times Spotted 251 | . 19 10 53 2 12 13 44 41 1 56 Peak Tracking Total 12 | . 4 3 5 1 9 4 4 4 1 12 Tactical Retreats 11 | . . . 2 . 1 1 2 1 . 4 Traps | -11 -10 -10 -9 -9 -9 -8 -8 -8 -7 -7 ------- Run | Yrd Mat Min Mat Min Exi Min Mat Gar Fac Gar Traps Triggered 26 | . 1 . 2 . . . 3 9 1 10 Indirectly . | . . . . . . . . . . . Trap Hack Attempts . | . . . . . . . . . . . Triggered . | . . . . . . . . . . . Disarmed . | . . . . . . . . . . . Reprogrammed . | . . . . . . . . . . . Reused . | . . . . . . . . . . . Traps Extracted . | . . . . . . . . . . . Installed . | . . . . . . . . . . . Triggered . | . . . . . . . . . . . Machines | -11 -10 -10 -9 -9 -9 -8 -8 -8 -7 -7 ---------- Run | Yrd Mat Min Mat Min Exi Min Mat Gar Fac Gar Machines Disabled 30 | . 2 . 5 . 5 3 1 8 . 6 Max in Single Turn 2 | . 1 . 1 . 2 1 1 1 . 1 Garrison Relay 11 | . . . . . . . . 6 . 5 Machines Repaired . | . . . . . . . . . . . Machines Dismantled . | . . . . . . . . . . . Machines Sabotaged . | . . . . . . . . . . . Overloaded Fab Kills . | . . . . . . . . . . . Hacking | -11 -10 -10 -9 -9 -9 -8 -8 -8 -7 -7 --------- Run | Yrd Mat Min Mat Min Exi Min Mat Gar Fac Gar Machines Accessed 39 | . 7 . 14 . 2 1 8 2 2 3 Terminals 25 | . 7 . 8 . . 1 3 2 1 3 Fabricators . | . . . . . . . . . . . Repair Stations 4 | . . . 2 . . . 2 . . . Recycling Units 2 | . . . 2 . . . . . . . Scanalyzers 4 | . . . 2 . . . 2 . . . Garrison Access 2 | . . . . . . . 1 . 1 . Total Hacks 121 | . 28 . 45 . 2 4 30 5 2 5 Successful 71 | . 13 . 29 . 2 2 19 2 1 3 Failed 49 | . 14 . 16 . . 2 11 3 1 2 Catastrophic 12 | . 4 . 1 . . 1 2 1 1 2 Database Lockouts 1 | . 1 . . . . . . . . . Manual 65 | . 23 . 23 . 1 4 13 1 . . Terminals 80 | . 28 . 23 . . 4 14 5 1 5 Fabricators . | . . . . . . . . . . . Repair Stations 11 | . . . 5 . . . 6 . . . Recycling Units 4 | . . . 4 . . . . . . . Scanalyzers 21 | . . . 13 . . . 8 . . . Garrison Access 3 | . . . . . . . 2 . 1 . Terminal Hacks 24 | . 6 . 6 . 2 2 4 1 . 3 Record 2 | . 1 . . . 1 . . . . . Part Schematic 9 | . 1 . 3 . . 2 3 . . . Robot Schematic 1 | . 1 . . . . . . . . . Robot Analysis 1 | . 1 . . . . . . . . . Prototype ID Bank 2 | . 1 . . . . . 1 . . . Branch Access Points 1 | . . . 1 . . . . . . . Emergency Access Points 2 | . . . . . . . . 1 . 1 Alert Level 1 | . . . 1 . . . . . . . Unreport Threat 1 | . . . 1 . . . . . . . Hauler Manifests 1 | . 1 . . . . . . . . . Patrol Navigation 1 | . . . . . . . . . . 1 Security Stations 1 | . . . . . . . . . . 1 Proto ID Catalog 1 | . . . . . 1 . . . . . Fabricator Hacks . | . . . . . . . . . . . Repair Station Hacks 8 | . . . 4 . . . 4 . . . Scan Component 4 | . . . 2 . . . 2 . . . Repair 4 | . . . 2 . . . 2 . . . Recycling Unit Hacks . | . . . . . . . . . . . Scanalyzer 16 | . . . 12 . . . 4 . . . Insert Component 8 | . . . 6 . . . 2 . . . Analyze 8 | . . . 6 . . . 2 . . . Garrison Access Hacks 2 | . . . . . . . 1 . 1 . Unlock Access 2 | . . . . . . . 1 . 1 . Unauthorized Hacks 21 | . 7 . 7 . . . 6 1 . . Terminals 17 | . 7 . 5 . . . 4 1 . . Assimilate 1 | . 1 . . . . . . . . . Operators 2 | . 1 . . . . . 1 . . . Skim 13 | . 5 . 5 . . . 3 . . . Override 1 | . . . . . . . . 1 . . Fabricators . | . . . . . . . . . . . Repair Stations . | . . . . . . . . . . . Recycling Units 2 | . . . 2 . . . . . . . Tunnel 2 | . . . 2 . . . . . . . Scanalyzers 1 | . . . . . . . 1 . . . Extract 1 | . . . . . . . 1 . . . Garrison Access 1 | . . . . . . . 1 . . . Reprogram 1 | . . . . . . . 1 . . . Data Cores Recovered . | . . . . . . . . . . . Used . | . . . . . . . . . . . Hacking Detections 31 | . 6 . 10 . . 1 8 2 2 2 Full Trace Events 6 | . . . 1 . . . 2 1 . 2 Feedback Events 1 | . . . . . . . . . . 1 Corruption 1 | . . . . . . . . . . 1 Feedback Blocked . | . . . . . . . . . . . Robot Schematics Acquired 1 | . 1 . . . . . . . . . Robots Built . | . . . . . . . . . . . Authchips . | . . . . . . . . . . . Time . | . . . . . . . . . . . Total Robot Build Rating . | . . . . . . . . . . . Part Schematics Acquired 28 | . 1 . 9 . . 2 16 . . . Parts Built . | . . . . . . . . . . . Authchips . | . . . . . . . . . . . Time . | . . . . . . . . . . . Total Part Build Rating . | . . . . . . . . . . . Parts Repaired 4 | . . . 2 . . . 2 . . . Time 128 | . . . 64 . . . 64 . . . Parts Recycled . | . . . . . . . . . . . Recycled Matter . | . . . . . . . . . . . Retrieved Matter . | . . . . . . . . . . . Retrieved Components . | . . . . . . . . . . . Parts Scanalyzed 7 | . . . 6 . . . 1 . . . Part Schematics Acquired 6 | . . . 6 . . . . . . . Parts Damaged 1 | . . . . . . . 1 . . . Bothacking | -11 -10 -10 -9 -9 -9 -8 -8 -8 -7 -7 ------------ Run | Yrd Mat Min Mat Min Exi Min Mat Gar Fac Gar Used RIF Installer . | . . . . . . . . . . . Robots Hacked 4 | . . . . . 4 . . . . . Non-combat 3 | . . . . . 3 . . . . . Combat 1 | . . . . . 1 . . . . . Robot Hacks Applied 4 | . . . . . 4 . . . . . parse_system 4 | . . . . . 4 . . . . . Relay Couplers Released 44 | . . . . . . . . 28 . 16 Machine Destruction 44 | . . . . . . . . 28 . 16 Fabnet Peak Effective % . | . . . . . . . . . . . Robots Rewired 8 | . . . . . . . . 6 . 2 Allies Hacked . | . . . . . . . . . . . Hacks Repelled . | . . . . . . . . . . . Allies | -11 -10 -10 -9 -9 -9 -8 -8 -8 -7 -7 -------- Run | Yrd Mat Min Mat Min Exi Min Mat Gar Fac Gar Total Allies 11 | . 1 . . 1 . . 1 6 . 2 Largest Group 3 | . 1 1 1 1 . . 1 3 . 2 Highest-Rated Group 101 | . 10 10 10 31 . . 15 101 . 70 Highest-Rated Ally 39 | . 10 10 10 31 . . 15 39 . 39 Initial Warlord ECA Mod 22 | . . . . . . . . . 11 11 Total Orders 2 | . . 2 . . . . . . . . STAY 1 | . . 1 . . . . . . . . FOLLOW 1 | . . 1 . . . . . . . . Ally Attacks 103 | . . . . . . . 9 66 . 28 Total Damage 1833 | . . . . . . . 151 1352 . 330 Kills 12 | . . . . . . . 1 9 . 2 Allies Corrupted . | . . . . . . . . . . . Allies Melted . | . . . . . . . . . . . Intel | -11 -10 -10 -9 -9 -9 -8 -8 -8 -7 -7 ------- Run | Yrd Mat Min Mat Min Exi Min Mat Gar Fac Gar Active Infowar (turns) 718 | 120 598 . . . . . . . . . Seismic 718 | 120 598 . . . . . . . . . Robot Analysis Total 1 | . 1 . . . . . . . . . Derelict Logs Recovered 4 | . . 2 . 2 . . . . . . Drone Launches . | . . . . . . . . . . . Drone Recoveries . | . . . . . . . . . . . Exploration | -11 -10 -10 -9 -9 -9 -8 -8 -8 -7 -7 ------------- Run | Yrd Mat Min Mat Min Exi Min Mat Gar Fac Gar Turns Passed 15237 | 237 1294 725 2312 1238 2638 827 2142 2093 92 1639 Spaces Moved 9488 | 124 862 622 1460 761 1666 594 1237 1203 59 900 Core 3 | 3 . . . . . . . . . . Treads . | . . . . . . . . . . . Legs . | . . . . . . . . . . . Wheels 9485 | 121 862 622 1460 761 1666 594 1237 1203 59 900 Hover . | . . . . . . . . . . . Flight . | . . . . . . . . . . . Fastest Speed 50 | 50 80 105 105 120 105 120 120 120 135 135 Average Speed 120 | 79 98 105 114 133 126 120 126 124 135 135 Slowest Speed 150 | 80 105 105 120 150 150 120 135 135 135 135 Overloaded Moves . | . . . . . . . . . . . Propulsion Burnouts . | . . . . . . . . . . . Robots Hopped . | . . . . . . . . . . . Potential Cave-ins . | . . . . . . . . . . . Cave-ins Triggered . | . . . . . . . . . . . Exploration Rate (%) 77 | 7 99 100 96 97 91 98 72 95 4 90 Regions Visited 10 Branch Regions 4 Pre-discovered Areas 8 | . 1 1 4 1 1 . . . . . Known Exits Taken 5 | . . 1 1 . . 1 1 . 1 . Unknown Exits Taken 4 | 1 1 . . 1 1 . . . . . Scrap Searched 3 | . . 1 . 1 . 1 . . . . Spaces Dug 3 | . . . . . . . . . . 3 Terrain Destroyed 82 | . . . 34 . 35 2 7 1 . 3 Melee 3 | . . . . . . . . . . 3 Projectile 12 | . . . . . 2 2 7 1 . . AOE 67 | . . . 34 . 33 . . . . . Terrain Rammed . | . . . . . . . . . . . Walls Destroyed . | . . . . . . . . . . . Machines Disabled . | . . . . . . . . . . . Actions | -11 -10 -10 -9 -9 -9 -8 -8 -8 -7 -7 --------- Run | Yrd Mat Min Mat Min Exi Min Mat Gar Fac Gar Total 12114 | 209 1248 660 1922 965 2100 647 1596 1532 67 1168 Wait 1251 | . 295 9 311 178 249 23 143 26 . 17 Move 9479 | 123 861 621 1459 760 1665 593 1236 1202 59 900 Hop . | . . . . . . . . . . . Pick Up 164 | 11 24 4 25 10 34 2 37 7 1 9 Fast Attach 20 | 6 . 1 6 . 4 . 2 . . 1 Attach 34 | 1 2 3 3 . 11 1 6 1 2 4 Detach 5 | . . . . . 5 . . . . . Swap 174 | 1 13 1 12 4 17 1 40 47 3 35 Drop 172 | 2 20 4 26 5 38 2 41 19 . 15 Fire 535 | 65 33 17 80 8 62 25 91 83 2 69 Melee 112 | . . . . . 15 . . 55 . 42 Ram . | . . . . . . . . . . . Kick . | . . . . . . . . . . . Crush . | . . . . . . . . . . . Escape Stasis 122 | . . . . . . . . 50 . 72 Rewire 46 | . . . . . . . . 42 . 4 Trap . | . . . . . . . . . . . Miscellaneous . | . . . . . . . . . . . Route ------- -11/Scrapyard -10/Materials (discovered 6 exits: *Mat x3 / [*Min x2] / [*Sub]) -10/Mines (discovered 3 exits: *Mat x2 / [*Sub]) -9/Materials (discovered 5 exits: *Mat x3 / *Min x2) -9/Mines (discovered 3 exits: *Mat x2 / *Exi) -9/Exiles -8/Mines (discovered 2 exits: *Mat x2) -8/Materials (discovered 4 exits: *Fac x3 / Gar) -8/Garrison (discovered 3 exits: *Fac x3) -7/Factory -7/Garrison (discovered 4 exits: [*Fac x4]) History --------- Turn | Location | Event 13 | -11/Scrapyard | Discovered new exit (range 16) 238 | -11/Scrapyard | Entered Materials 306 | -10/Materials | Build established: Mutant 350 | -10/Materials | Discovered new exit (range 3) 437 | -10/Materials | Discovered new exit (range 6) 644 | -10/Materials | Discovered new exit (range 8) 867 | -10/Materials | Discovered new exit (range 7) 930 | -10/Materials | Discovered new exit (range 14) 945 | -10/Materials | Discovered new exit (range 15) 1002 | -10/Materials | Central database locked down 1082 | -10/Materials | Learned Storage trap positions 1153 | -10/Materials | Learned location of Subcaves (-10) 1264 | -10/Materials | Learned 4 Subcaves zone layouts 1307 | -10/Materials | Learned 4 Subcaves zone layouts 1339 | -10/Materials | Loaded intel: 12 trap records 1380 | -10/Materials | Learned Storage emergency access door positions 1494 | -10/Materials | Identified exit to Materials 1532 | -10/Materials | Entered Mines 1532 | -10/Mines | Accompanied by 1 ally 1628 | -10/Mines | Discovered exit to Materials (range 14) 1632 | -10/Mines | Learned location of 1 exit from Materials 1958 | -10/Mines | Discovered new exit (range 6) 2137 | -10/Mines | Learned location of Recycling (-7) 2137 | -10/Mines | Discovered exit to Materials (range 9) 2257 | -10/Mines | Entered Materials 2257 | -9/Materials | Accompanied by 1 ally 2257 | -9/Materials | Evolved 2 slots: Weapon x2 2258 | -9/Materials | Identified exit to Materials 2481 | -9/Materials | Discovered new exit (range 6) 2590 | -9/Materials | Build established: Gunner 2682 | -9/Materials | Repaired Arm. Wheel 3021 | -9/Materials | Discovered exit to Materials (range 11) 3512 | -9/Materials | Identified exit to Mines 3738 | -9/Materials | Repaired Arm. Wheel 3741 | -9/Materials | Learned location of 2 exits from Materials 3789 | -9/Materials | Learned location of 2 exits from Materials 3849 | -9/Materials | Learned Storage stockpile data 3861 | -9/Materials | Learned 2 Storage zone layouts 3884 | -9/Materials | Learned location of Zion (-6) 3959 | -9/Materials | Learned location of 3 exits from Materials 4011 | -9/Materials | Learned Storage emergency access door positions 4569 | -9/Materials | Entered Mines 4572 | -9/Mines | Received a Mining Laser from a helpful Derelict 4732 | -9/Mines | Discovered exit to Materials (range 7) 4876 | -9/Mines | Assembled infested the area 4881 | -9/Mines | Assisted by a Guerilla fighting off Assembled 4881 | -9/Mines | A weapon hastily lodged in a ceiling crevice suddenly fell to the ground 5133 | -9/Mines | Received a Rocket Launcher from a helpful Derelict 5142 | -9/Mines | Learned 8 Materials zone layouts 5224 | -9/Mines | Found a hidden stash of uninstalled traps 5799 | -9/Mines | Deemed a non-threat by the Exiles lab entrance 5801 | -9/Mines | Discovered new exit (range 5) 5807 | -9/Mines | Entered Exiles 5846 | -9/Exiles | Met 8R-AWN 5869 | -9/Exiles | Met EX-HEX 5923 | -9/Exiles | Met EX-DEC 5969 | -9/Exiles | Discovered new exit (range 14) 6108 | -9/Exiles | Build established: Mutant 6354 | -9/Exiles | Met EX-BIN 6454 | -9/Exiles | Visited The Gauntlet 6647 | -9/Exiles | Aligned with FarCom system 6649 | -9/Exiles | Given EX-Vault access code 6682 | -9/Exiles | Opened EX-Vault 6689 | -9/Exiles | Found Lightpack 2.0 6691 | -9/Exiles | Found Gui. Plasma Cannon 6719 | -9/Exiles | Warned to stay clear of 0b10 Research branches 7585 | -9/Exiles | Attacked by the Exiles 7738 | -9/Exiles | Destroyed 8R-AWN 7748 | -9/Exiles | Lost 5 parts (5w) 7866 | -9/Exiles | Build established: Gunner 8010 | -9/Exiles | Destroyed EX-BIN 8080 | -9/Exiles | Destroyed EX-HEX 8132 | -9/Exiles | Destroyed EX-DEC 8213 | -9/Exiles | Found Exp. Core Analyzer 8445 | -9/Exiles | Entered Mines 8589 | -8/Mines | Core integrity fell below 50% 8626 | -8/Mines | Discovered exit to Materials (range 8) 9250 | -8/Mines | Discovered exit to Materials (range 6) 9272 | -8/Mines | Entered Materials 9272 | -8/Materials | Evolved 2 slots: Utility x1, Weapon x1 9273 | -8/Materials | Identified exit to Factory 9604 | -8/Materials | Found Powered Armor 9607 | -8/Materials | Found Powered Armor 9740 | -8/Materials | Found Powered Armor 10190 | -8/Materials | Repaired Autogun 10229 | -8/Materials | Repaired Arm. Wheel 11089 | -8/Materials | Identified exit to Garrison 11102 | -8/Materials | Garrison activated, responded to threat 11272 | -8/Materials | First assault squad dispatched 11414 | -8/Materials | Entered Garrison 11517 | -8/Garrison | Garrison Relay disabled 11564 | -8/Garrison | Triggered checkpoint 11571 | -8/Garrison | Triggered checkpoint 11728 | -8/Garrison | Triggered checkpoint 11799 | -8/Garrison | Garrison Relay disabled 11845 | -8/Garrison | Garrison Relay disabled 11949 | -8/Garrison | Triggered checkpoint 11980 | -8/Garrison | Triggered checkpoint 12126 | -8/Garrison | Triggered checkpoint 12145 | -8/Garrison | Garrison Relay disabled 12182 | -8/Garrison | Spotted B-75 Beast 12234 | -8/Garrison | Destroyed B-75 Beast 12255 | -8/Garrison | Lost 3 allies 12540 | -8/Garrison | Build established: Scavenger-Gunner 12588 | -8/Garrison | Triggered checkpoint 12628 | -8/Garrison | Triggered checkpoint 12695 | -8/Garrison | Garrison Relay disabled 12806 | -8/Garrison | Garrison Relay disabled 12883 | -8/Garrison | Spotted B-75 Beast 12883 | -8/Garrison | Spotted B-75 Beast 12905 | -8/Garrison | Allies destroyed B-75 Beast 12925 | -8/Garrison | Core integrity fell below 50% 12930 | -8/Garrison | Destroyed B-75 Beast 12943 | -8/Garrison | Lost 3 allies 13108 | -8/Garrison | Triggered checkpoint 13507 | -8/Garrison | Entered Factory 13507 | -7/Factory | Evolved 2 slots: Utility x1, Weapon x1 13599 | -7/Factory | Identified exit to Garrison 13599 | -7/Factory | Entered Garrison 13647 | -7/Garrison | Triggered checkpoint 13687 | -7/Garrison | Garrison Relay disabled 13769 | -7/Garrison | Build established: Scavenger-Executioner 14000 | -7/Garrison | Triggered checkpoint 14093 | -7/Garrison | Destroyed 13 combat bots 14230 | -7/Garrison | Garrison Relay disabled 14265 | -7/Garrison | Learned Factory security intel 14290 | -7/Garrison | Garrison Relay disabled 14358 | -7/Garrison | Discovered new exit (range 13) 14401 | -7/Garrison | Discovered new exit (range 5) 14672 | -7/Garrison | Discovered new exit (range 5) 14710 | -7/Garrison | Triggered checkpoint 14730 | -7/Garrison | Garrison Relay disabled 14874 | -7/Garrison | Triggered checkpoint 14946 | -7/Garrison | Discovered new exit (range 9) 14974 | -7/Garrison | Garrison Relay disabled 14997 | -7/Garrison | Triggered checkpoint 15213 | -7/Garrison | P-60 Hacker assimilated allied NA-C2Z(h) 15220 | -7/Garrison | P-60 Hacker assimilated allied RD-C7S(g) 15238 | -7/Garrison | Self-destructed Last Messages --------------- 15228_ Arm. Wheel destroyed. 15229_ System corrupted: Energy discharge (-101). 15229_ Hvy. Assault Rifle destroyed. 15229_ HV Slug penetrates Wall. 15230_ Imp. Cooling System destroyed. 15231_ Penetrated by Slug. 15231_ Autogun destroyed. 15232_ I-36 Angel suffers critical hit (Destroy). 15232_ Destroyed Imp. Deuterium Engine. 15232_ Slug penetrates I-36 Angel. 15233_ P-60 Hacker destroyed. 15234_ Slug penetrates Wall. 15234_ Autogun destroyed. 15234_ Slug penetrates X-62 Marksman. 15234_ X-62 Marksman destroyed. 15235_ Slug penetrates I-36 Angel. 15235_ Penetrated by HV Slug. 15236_ Penetrated by Slug. 15236_ Gauss Rifle destroyed. 15237_ Slug penetrates P-60 Hacker. Map ----- +----------------------------------------------------+ | ?### ## ##[ !###????????????????????????????? | | ?# [ * #????????????????????????????? | | ?# = #????????????????????????????? | | ?# #????????????????????????????? | | ?# = #????????????????????????????? | | ?###* ## ##[[!######????????????????????????## | | ???# =%## ##%! ####T##########################! | | #??# %== = | | ??+ ^ ##########! =### #####* | | #??# [ ####+## #????????# [ #?#%#???## | | #??## ## = *## =##?????# #????????##+##?#*###??? | | #???# ## = ##!=#??????# #?????????# #??# # #??? | | ##### ######## #??????# #?######### #??# ! #??? | | + #??????# #??????+ + #??#!! #??? | | ##### #??????# #??????# #?######### #??# ! #??? | | #???# #??????# +??????# #?????????# #??# # #??? | | #???# #??????# #??????# #????????##"##?# ###??? | | ##### #??????# ######## #????????# #?# #????? | | *[ #??????# ##########= =### ###### | | ! =#??????# = ![ " | | ######"##?????##+######## ################ ###### | | #????# #??????# #??????# #?????????????#" #????# | | #????# #??????# #??????#h%#?????????????#T #????? | | #????####??????# #??????#![#?????????????#""#????? | | #??????????????# #??????#*%#?????????????####????? | | #????????????### ###????#@i#?????????????????????? | | #????????????#[ #????#px############??????????? | | #######??????#[ !!+????hxhm! #????????? | | #??????#[ !#????#!![% #????????? | | #??????#[[ !!#????#= ########## < #????????? | | = #??????#######????#[%#?????????????????????? | | ! #??????############ !###???????????????????? | | #??????# ! =! #???????????????????? | | [! #??????# *[=*#???????????????????? | | ! [#??????# ### ###;##???????????????????? | | ! * =#??????# +?+ #?# #????????????????????? | | #??????# ???######?###????????????????????? | | #??????#